[Event "Titled Tuesday Blitz April 12 Early 2022"]
[White "Kadam, Om Manish"]
[Black "Rudykh, Stepan"]
[WhiteFideId "45076294"]
[BlackFideId "4180321"]
[WhiteElo "1729"]
[BlackElo "2162"]
[Result "0-1"]
[Round "05"]
[TimeControl "180+1"]
[Date "2022.04.13"]
[WhiteClock "0:02:02"]
[BlackClock "0:02:12"]

1. e4 {[%clk 0:03:00]}  e6 {[%clk 0:03:00]} 2. d4 {[%clk 0:03:00]}  d5 {[%clk 0:03:00]} 3. Nd2 {[%clk 0:03:00]}  Nf6 {[%clk 0:03:00]} 4. e5 {[%clk 0:03:00]}  Nfd7 {[%clk 0:03:01]} 5. Bd3 {[%clk 0:03:01]}  c5 {[%clk 0:03:02]} 6. c3 {[%clk 0:03:01]}  Nc6 {[%clk 0:03:02]} 7. Ne2 {[%clk 0:03:01]}  cxd4 {[%clk 0:03:03]} 8. cxd4 {[%clk 0:03:02]}  f6 {[%clk 0:03:04]} 9. exf6 {[%clk 0:03:02]}  Nxf6 {[%clk 0:03:05]} 10. Nf3 {[%clk 0:03:03]}  Bd6 {[%clk 0:03:05]} 11. O-O {[%clk 0:03:03]}  Qc7 {[%clk 0:03:06]} 12. Bg5 {[%clk 0:03:03]}  O-O {[%clk 0:03:06]} 13. Rc1 {[%clk 0:03:04]}  Bd7 {[%clk 0:03:00]} 14. a3 {[%clk 0:03:04]}  Be8 {[%clk 0:02:56]} 15. Bh4 {[%clk 0:03:03]}  Bh5 {[%clk 0:02:46]} 16. Ng3 {[%clk 0:02:52]}  Bxf3 {[%clk 0:02:20]} 17. Qxf3 {[%clk 0:02:51]}  Nxd4 {[%clk 0:02:19]} 18. Nh5 {[%clk 0:02:08]}  Nxf3+ {[%clk 0:02:17]} 19. gxf3 {[%clk 0:02:01]}  Qf7 {[%clk 0:02:15]} 20. Nxf6+ {[%clk 0:02:01]}  gxf6 {[%clk 0:02:16]} 21. Kh1 {[%clk 0:02:02]}  Qh5 {[%clk 0:02:12]} 0-1


[Site "https://www.chess.com"]

[Event "Titled Tuesday Blitz April 12 Early 2022"]
[White "Kaminski, Victor"]
[Black "Aitbayev, Aslan"]
[WhiteFideId "1131630"]
[BlackFideId "13704613"]
[WhiteElo "2181"]
[BlackElo "2385"]
[Result "0-1"]
[Round "05"]
[TimeControl "180+1"]
[Date "2022.04.13"]
[WhiteClock "0:00:04"]
[BlackClock "0:00:17"]

1. e4 {[%clk 0:03:00]}  d6 {[%clk 0:02:59]} 2. d4 {[%clk 0:02:59]}  Nf6 {[%clk 0:03:00]} 3. Nc3 {[%clk 0:03:00]}  g6 {[%clk 0:02:57]} 4. f4 {[%clk 0:03:00]}  Bg7 {[%clk 0:02:56]} 5. Nf3 {[%clk 0:03:00]}  O-O {[%clk 0:02:56]} 6. a3 {[%clk 0:02:57]}  Nc6 {[%clk 0:02:47]} 7. d5 {[%clk 0:02:42]}  Nb8 {[%clk 0:02:44]} 8. Bd3 {[%clk 0:02:41]}  c6 {[%clk 0:02:44]} 9. dxc6 {[%clk 0:02:40]}  Nxc6 {[%clk 0:02:44]} 10. Be3 {[%clk 0:02:39]}  Bg4 {[%clk 0:02:07]} 11. h3 {[%clk 0:02:32]}  Bxf3 {[%clk 0:02:07]} 12. Qxf3 {[%clk 0:02:32]}  Rc8 {[%clk 0:02:07]} 13. O-O {[%clk 0:02:31]}  Nd7 {[%clk 0:02:02]} 14. Rab1 {[%clk 0:02:08]}  Na5 {[%clk 0:01:45]} 15. Ne2 {[%clk 0:01:51]}  Nc4 {[%clk 0:01:43]} 16. Bxc4 {[%clk 0:01:43]}  Rxc4 {[%clk 0:01:44]} 17. c3 {[%clk 0:01:40]}  Qa5 {[%clk 0:01:41]} 18. Bd4 {[%clk 0:01:36]}  e5 {[%clk 0:01:38]} 19. Be3 {[%clk 0:01:32]}  exf4 {[%clk 0:01:21]} 20. Bxf4 {[%clk 0:01:26]}  Ne5 {[%clk 0:01:10]} 21. Bxe5 {[%clk 0:01:22]}  Qxe5 {[%clk 0:01:07]} 22. Ng3 {[%clk 0:01:01]}  h5 {[%clk 0:01:06]} 23. Rfe1 {[%clk 0:00:58]}  Re8 {[%clk 0:01:02]} 24. Rf1 {[%clk 0:00:49]}  Re7 {[%clk 0:01:02]} 25. Rbd1 {[%clk 0:00:39]}  h4 {[%clk 0:00:59]} 26. Nh1 {[%clk 0:00:38]}  Rxe4 {[%clk 0:00:57]} 27. Nf2 {[%clk 0:00:31]}  Rf4 {[%clk 0:00:53]} 28. Qd5 {[%clk 0:00:23]}  Qxd5 {[%clk 0:00:49]} 29. Rxd5 {[%clk 0:00:24]}  Re2 {[%clk 0:00:50]} 30. Nd3 {[%clk 0:00:24]}  Rxf1+ {[%clk 0:00:45]} 31. Kxf1 {[%clk 0:00:25]}  Rd2 {[%clk 0:00:45]} 32. Rxd6 {[%clk 0:00:23]}  Bh6 {[%clk 0:00:40]} 33. Rd7 {[%clk 0:00:20]}  Be3 {[%clk 0:00:32]} 34. b4 {[%clk 0:00:12]}  b5 {[%clk 0:00:30]} 35. Ne5 {[%clk 0:00:06]}  Rf2+ {[%clk 0:00:24]} 36. Ke1 {[%clk 0:00:06]}  Rf5 {[%clk 0:00:22]} 37. Nf3 {[%clk 0:00:05]}  g5 {[%clk 0:00:18]} 38. Rd3 {[%clk 0:00:05]}  Bc1 {[%clk 0:00:17]} 39. c4 {[%clk 0:00:03]}  bxc4 {[%clk 0:00:16]} 40. Rd8+ {[%clk 0:00:03]}  Kg7 {[%clk 0:00:16]} 41. Rc8 {[%clk 0:00:04]}  Bxa3 {[%clk 0:00:16]} 42. Rxc4 {[%clk 0:00:04]}  Rb5 {[%clk 0:00:17]} 43. Rg4 {[%clk 0:00:04]}  Bxb4+ {[%clk 0:00:17]} 44. Ke2 {[%clk 0:00:02]}  Be7 {[%clk 0:00:17]} 45. Nxh4 {[%clk 0:00:02]}  f5 {[%clk 0:00:16]} 46. Nf3 {[%clk 0:00:01]}  fxg4 {[%clk 0:00:16]} 47. hxg4 {[%clk 0:00:02]}  Rb2+ {[%clk 0:00:16]} 48. Kd3 {[%clk 0:00:03]}  Rxg2 {[%clk 0:00:16]} 49. Nd4 {[%clk 0:00:03]}  Rg3+ {[%clk 0:00:16]} 50. Ke2 {[%clk 0:00:03]}  Rxg4 {[%clk 0:00:17]} 51. Nf5+ {[%clk 0:00:04]}  Kf6 {[%clk 0:00:17]} 52. Nxe7 {[%clk 0:00:04]}  Re4+ {[%clk 0:00:17]} 0-1


[Site "https://www.chess.com"]

[Event "Titled Tuesday Blitz April 12 Early 2022"]
[White "Karas, Marek"]
[Black "Muradov, Soltan"]
[WhiteFideId "14928558"]
[BlackFideId "14002108"]
[WhiteElo "2271"]
[BlackElo "1854"]
[Result "1/2-1/2"]
[Round "05"]
[TimeControl "180+1"]
[Date "2022.04.13"]
[WhiteClock "0:00:08"]
[BlackClock "0:00:05"]

1. d4 {[%clk 0:02:58]}  Nf6 {[%clk 0:02:59]} 2. Nf3 {[%clk 0:02:59]}  e6 {[%clk 0:02:59]} 3. c4 {[%clk 0:02:59]}  b6 {[%clk 0:03:00]} 4. a3 {[%clk 0:02:59]}  Bb7 {[%clk 0:02:58]} 5. Nc3 {[%clk 0:02:59]}  d5 {[%clk 0:02:54]} 6. cxd5 {[%clk 0:03:00]}  Nxd5 {[%clk 0:02:54]} 7. Qc2 {[%clk 0:02:57]}  Be7 {[%clk 0:02:53]} 8. e4 {[%clk 0:02:56]}  Nxc3 {[%clk 0:02:53]} 9. bxc3 {[%clk 0:02:56]}  O-O {[%clk 0:02:54]} 10. Bd3 {[%clk 0:02:56]}  Nd7 {[%clk 0:02:55]} 11. O-O {[%clk 0:02:55]}  c5 {[%clk 0:02:55]} 12. Qe2 {[%clk 0:02:54]}  cxd4 {[%clk 0:02:45]} 13. cxd4 {[%clk 0:02:55]}  Rc8 {[%clk 0:02:46]} 14. Bb2 {[%clk 0:02:53]}  Nf6 {[%clk 0:02:28]} 15. Rad1 {[%clk 0:02:49]}  Qc7 {[%clk 0:02:23]} 16. Rfe1 {[%clk 0:02:44]}  Qf4 {[%clk 0:02:14]} 17. d5 {[%clk 0:02:32]}  exd5 {[%clk 0:02:05]} 18. e5 {[%clk 0:02:33]}  Ne4 {[%clk 0:02:02]} 19. g3 {[%clk 0:02:25]}  Qg4 {[%clk 0:01:57]} 20. Nd4 {[%clk 0:02:17]}  Qxe2 {[%clk 0:01:56]} 21. Rxe2 {[%clk 0:02:16]}  Nc3 {[%clk 0:01:56]} 22. Bxc3 {[%clk 0:02:13]}  Rxc3 {[%clk 0:01:57]} 23. Nb5 {[%clk 0:02:11]}  Rb3 {[%clk 0:01:51]} 24. a4 {[%clk 0:02:01]}  Rb4 {[%clk 0:01:34]} 25. Ra2 {[%clk 0:01:44]}  g6 {[%clk 0:01:22]} 26. Nxa7 {[%clk 0:01:38]}  Ra8 {[%clk 0:01:20]} 27. Nb5 {[%clk 0:01:35]}  Raxa4 {[%clk 0:01:19]} 28. Rc2 {[%clk 0:01:32]}  Bc5 {[%clk 0:01:01]} 29. Bf1 {[%clk 0:01:22]}  d4 {[%clk 0:00:58]} 30. Nd6 {[%clk 0:01:16]}  Bf3 {[%clk 0:00:53]} 31. Be2 {[%clk 0:01:06]}  d3 {[%clk 0:00:46]} 32. Rxd3 {[%clk 0:01:00]}  Ra1+ {[%clk 0:00:41]} 33. Bf1 {[%clk 0:00:55]}  Rbb1 {[%clk 0:00:39]} 34. Rxf3 {[%clk 0:00:55]}  Rxf1+ {[%clk 0:00:39]} 35. Kg2 {[%clk 0:00:56]}  g5 {[%clk 0:00:31]} 36. Nxf7 {[%clk 0:00:51]}  g4 {[%clk 0:00:30]} 37. Nh6+ {[%clk 0:00:50]}  Kg7 {[%clk 0:00:17]} 38. Nxg4 {[%clk 0:00:51]}  h5 {[%clk 0:00:17]} 39. Ne3 {[%clk 0:00:49]}  Rg1+ {[%clk 0:00:17]} 40. Kh3 {[%clk 0:00:50]}  Ra4 {[%clk 0:00:17]} 41. Rf4 {[%clk 0:00:40]}  Rxf4 {[%clk 0:00:12]} 42. gxf4 {[%clk 0:00:40]}  Kg6 {[%clk 0:00:13]} 43. f5+ {[%clk 0:00:28]}  Kg5 {[%clk 0:00:13]} 44. f6 {[%clk 0:00:29]}  Kg6 {[%clk 0:00:12]} 45. Rc4 {[%clk 0:00:22]}  Re1 {[%clk 0:00:11]} 46. Re4 {[%clk 0:00:19]}  Kf7 {[%clk 0:00:02]} 47. Kg2 {[%clk 0:00:12]}  b5 {[%clk 0:00:03]} 48. Kf3 {[%clk 0:00:12]}  b4 {[%clk 0:00:03]} 49. Nc4 {[%clk 0:00:08]}  Rc1 {[%clk 0:00:03]} 50. Kf4 {[%clk 0:00:09]}  Ke6 {[%clk 0:00:03]} 51. f3 {[%clk 0:00:08]}  b3 {[%clk 0:00:03]} 52. Nb2 {[%clk 0:00:08]}  Ba3 {[%clk 0:00:03]} 53. Nd3 {[%clk 0:00:09]}  Rd1 {[%clk 0:00:03]} 54. Re3 {[%clk 0:00:05]}  b2 {[%clk 0:00:01]} 55. Nxb2 {[%clk 0:00:05]}  Bxb2 {[%clk 0:00:02]} 56. Re4 {[%clk 0:00:03]}  Rd5 {[%clk 0:00:02]} 57. Kg5 {[%clk 0:00:03]}  Rxe5+ {[%clk 0:00:03]} 58. Rxe5+ {[%clk 0:00:03]}  Bxe5 {[%clk 0:00:04]} 59. Kxh5 {[%clk 0:00:01]}  Kxf6 {[%clk 0:00:03]} 60. Kg4 {[%clk 0:00:02]}  Kg6 {[%clk 0:00:03]} 61. f4 {[%clk 0:00:03]}  Bd4 {[%clk 0:00:04]} 62. h4 {[%clk 0:00:03]}  Kh6 {[%clk 0:00:05]} 63. h5 {[%clk 0:00:03]}  Bf6 {[%clk 0:00:05]} 64. Kf5 {[%clk 0:00:03]}  Ba1 {[%clk 0:00:06]} 65. Kg4 {[%clk 0:00:03]}  Bc3 {[%clk 0:00:06]} 66. f5 {[%clk 0:00:04]}  Bf6 {[%clk 0:00:06]} 67. Kf4 {[%clk 0:00:05]}  Kxh5 {[%clk 0:00:05]} 68. Ke4 {[%clk 0:00:06]}  Kg5 {[%clk 0:00:06]} 69. Kd5 {[%clk 0:00:07]}  Kg4 {[%clk 0:00:06]} 70. Ke6 {[%clk 0:00:07]}  Kg5 {[%clk 0:00:07]} 71. Kf7 {[%clk 0:00:07]}  Ba1 {[%clk 0:00:07]} 72. Ke6 {[%clk 0:00:07]}  Bf6 {[%clk 0:00:08]} 73. Kd5 {[%clk 0:00:07]}  Kf4 {[%clk 0:00:04]} 74. Ke6 {[%clk 0:00:08]}  Kg5 {[%clk 0:00:05]} 1/2-1/2


[Site "https://www.chess.com"]

[Event "Titled Tuesday Blitz April 12 Early 2022"]
[White "Korchmar, Vasiliy"]
[Black "Barp, Alberto"]
[WhiteFideId "24131750"]
[BlackFideId "872555"]
[WhiteElo "2370"]
[BlackElo "2229"]
[Result "1-0"]
[Round "05"]
[TimeControl "180+1"]
[Date "2022.04.13"]
[WhiteClock "0:01:09"]
[BlackClock "0:00:43"]

1. d4 {[%clk 0:03:00]}  Nf6 {[%clk 0:02:57]} 2. Bf4 {[%clk 0:03:01]}  g6 {[%clk 0:02:53]} 3. Nc3 {[%clk 0:03:01]}  d5 {[%clk 0:02:53]} 4. e3 {[%clk 0:03:01]}  Bg7 {[%clk 0:02:52]} 5. h4 {[%clk 0:03:02]}  h5 {[%clk 0:02:50]} 6. Nf3 {[%clk 0:03:01]}  Bg4 {[%clk 0:02:49]} 7. Be2 {[%clk 0:03:01]}  O-O {[%clk 0:02:48]} 8. Ne5 {[%clk 0:03:01]}  Bxe2 {[%clk 0:02:47]} 9. Qxe2 {[%clk 0:03:02]}  Nbd7 {[%clk 0:02:46]} 10. O-O-O {[%clk 0:03:02]}  c6 {[%clk 0:02:44]} 11. f3 {[%clk 0:02:51]}  Rc8 {[%clk 0:02:40]} 12. g4 {[%clk 0:02:51]}  b5 {[%clk 0:02:40]} 13. Kb1 {[%clk 0:02:39]}  a5 {[%clk 0:02:39]} 14. Rhg1 {[%clk 0:02:30]}  Qe8 {[%clk 0:02:30]} 15. Qg2 {[%clk 0:02:23]}  b4 {[%clk 0:02:29]} 16. Ne2 {[%clk 0:02:24]}  hxg4 {[%clk 0:02:06]} 17. Nxg4 {[%clk 0:02:04]}  Nh5 {[%clk 0:02:04]} 18. Ng3 {[%clk 0:02:04]}  Nxf4 {[%clk 0:01:59]} 19. exf4 {[%clk 0:02:05]}  c5 {[%clk 0:01:39]} 20. Nf5 {[%clk 0:01:48]}  Rc6 {[%clk 0:01:31]} 21. h5 {[%clk 0:01:41]}  cxd4 {[%clk 0:01:08]} 22. hxg6 {[%clk 0:01:24]}  Rxg6 {[%clk 0:01:09]} 23. Rh1 {[%clk 0:01:23]}  e6 {[%clk 0:00:51]} 24. Qh3 {[%clk 0:01:21]}  f6 {[%clk 0:00:43]} 25. Nd6 {[%clk 0:01:09]} 1-0


[Site "https://www.chess.com"]

[Event "Titled Tuesday Blitz April 12 Early 2022"]
[White "Kosakowski, Jakub"]
[Black "Pesotskiy, Mikhail"]
[WhiteFideId "1185080"]
[BlackFideId "34164453"]
[WhiteElo "2454"]
[BlackElo "2010"]
[Result "1-0"]
[Round "05"]
[TimeControl "180+1"]
[Date "2022.04.12"]
[WhiteClock "0:01:51"]
[BlackClock "0:01:05"]

1. Nf3 {[%clk 0:02:55]}  Nf6 {[%clk 0:03:00]} 2. b3 {[%clk 0:02:55]}  b6 {[%clk 0:02:54]} 3. Bb2 {[%clk 0:02:50]}  Bb7 {[%clk 0:02:55]} 4. e3 {[%clk 0:02:50]}  e6 {[%clk 0:02:55]} 5. d4 {[%clk 0:02:50]}  Be7 {[%clk 0:02:55]} 6. Bd3 {[%clk 0:02:50]}  O-O {[%clk 0:02:55]} 7. Nbd2 {[%clk 0:02:49]}  d5 {[%clk 0:02:56]} 8. O-O {[%clk 0:02:50]}  Nbd7 {[%clk 0:02:56]} 9. Qe2 {[%clk 0:02:48]}  Ne4 {[%clk 0:02:57]} 10. c4 {[%clk 0:02:46]}  c5 {[%clk 0:02:46]} 11. Rac1 {[%clk 0:02:41]}  Rc8 {[%clk 0:02:44]} 12. cxd5 {[%clk 0:02:39]}  exd5 {[%clk 0:02:44]} 13. Ba6 {[%clk 0:02:39]}  Bxa6 {[%clk 0:02:39]} 14. Qxa6 {[%clk 0:02:40]}  Nxd2 {[%clk 0:02:40]} 15. Nxd2 {[%clk 0:02:39]}  Nf6 {[%clk 0:02:33]} 16. dxc5 {[%clk 0:02:33]}  bxc5 {[%clk 0:02:33]} 17. Nf3 {[%clk 0:02:08]}  Qb6 {[%clk 0:02:33]} 18. Qe2 {[%clk 0:02:08]}  a5 {[%clk 0:02:27]} 19. Rfd1 {[%clk 0:02:08]}  Rfd8 {[%clk 0:02:27]} 20. Ne5 {[%clk 0:02:02]}  Bd6 {[%clk 0:01:30]} 21. Ng4 {[%clk 0:01:59]}  Nxg4 {[%clk 0:01:28]} 22. Qxg4 {[%clk 0:01:59]}  Bf8 {[%clk 0:01:29]} 23. Rxd5 {[%clk 0:01:56]}  Rxd5 {[%clk 0:01:27]} 24. Qxc8 {[%clk 0:01:56]}  Rd2 {[%clk 0:01:05]} 25. Ba3 {[%clk 0:01:52]}  Rxa2 {[%clk 0:01:05]} 26. Bxc5 {[%clk 0:01:51]} 1-0


[Site "https://www.chess.com"]

[Event "Titled Tuesday Blitz April 12 Early 2022"]
[White "Kouskoutis, Georgios-Alexandros"]
[Black "Yanayt, Eugene"]
[WhiteFideId "4234049"]
[BlackFideId "2020165"]
[WhiteElo "2130"]
[BlackElo "2046"]
[Result "0-1"]
[Round "05"]
[TimeControl "180+1"]
[Date "2022.04.13"]
[WhiteClock "0:00:05"]
[BlackClock "0:00:23"]

1. c4 {[%clk 0:03:00]}  e5 {[%clk 0:02:58]} 2. g3 {[%clk 0:03:01]}  Nc6 {[%clk 0:02:52]} 3. Bg2 {[%clk 0:03:01]}  g6 {[%clk 0:02:50]} 4. Nc3 {[%clk 0:03:02]}  Bg7 {[%clk 0:02:49]} 5. e4 {[%clk 0:03:02]}  f5 {[%clk 0:02:47]} 6. exf5 {[%clk 0:02:59]}  Nf6 {[%clk 0:02:38]} 7. fxg6 {[%clk 0:02:57]}  hxg6 {[%clk 0:02:38]} 8. Nge2 {[%clk 0:02:58]}  d6 {[%clk 0:02:34]} 9. d3 {[%clk 0:02:57]}  Bh3 {[%clk 0:02:30]} 10. Bxh3 {[%clk 0:02:54]}  Rxh3 {[%clk 0:02:29]} 11. Bg5 {[%clk 0:02:52]}  Qd7 {[%clk 0:02:23]} 12. Bxf6 {[%clk 0:02:17]}  Bxf6 {[%clk 0:02:22]} 13. Nd5 {[%clk 0:02:17]}  Bg7 {[%clk 0:02:14]} 14. Qa4 {[%clk 0:01:47]}  O-O-O {[%clk 0:02:06]} 15. Nec3 {[%clk 0:00:55]}  Qf7 {[%clk 0:01:30]} 16. O-O-O {[%clk 0:00:40]}  Qxf2 {[%clk 0:01:28]} 17. Rhf1 {[%clk 0:00:34]}  Qg2 {[%clk 0:01:12]} 18. Rf7 {[%clk 0:00:31]}  Rd7 {[%clk 0:00:43]} 19. Rxd7 {[%clk 0:00:18]}  Kxd7 {[%clk 0:00:41]} 20. Ne4 {[%clk 0:00:09]}  Rxh2 {[%clk 0:00:34]} 21. Qa3 {[%clk 0:00:08]}  Nd4 {[%clk 0:00:30]} 22. Ne3 {[%clk 0:00:05]}  Bh6 {[%clk 0:00:29]} 23. Nf6+ {[%clk 0:00:05]}  Ke6 {[%clk 0:00:23]} 24. Nd5 {[%clk 0:00:05]}  Qc2# {[%clk 0:00:23]} 0-1


[Site "https://www.chess.com"]

[Event "Titled Tuesday Blitz April 12 Early 2022"]
[White "Lamaze, Simon"]
[Black "Hess, Robert"]
[WhiteFideId "36069264"]
[BlackFideId "2022036"]
[WhiteElo "1999"]
[BlackElo "2557"]
[Result "0-1"]
[Round "05"]
[TimeControl "180+1"]
[Date "2022.04.13"]
[WhiteClock "0:00:20"]
[BlackClock "0:00:06"]

1. d4 {[%clk 0:02:56]}  g6 {[%clk 0:02:59]} 2. c4 {[%clk 0:02:55]}  Bg7 {[%clk 0:02:59]} 3. Nc3 {[%clk 0:02:55]}  c5 {[%clk 0:03:00]} 4. d5 {[%clk 0:02:55]}  Bxc3+ {[%clk 0:03:00]} 5. bxc3 {[%clk 0:02:55]}  f5 {[%clk 0:03:00]} 6. g4 {[%clk 0:02:53]}  fxg4 {[%clk 0:03:00]} 7. h3 {[%clk 0:02:53]}  g3 {[%clk 0:02:55]} 8. fxg3 {[%clk 0:02:52]}  Qa5 {[%clk 0:02:52]} 9. Qd3 {[%clk 0:02:49]}  d6 {[%clk 0:02:51]} 10. Bg2 {[%clk 0:02:46]}  Nd7 {[%clk 0:02:51]} 11. Nf3 {[%clk 0:02:44]}  Nb6 {[%clk 0:02:49]} 12. O-O {[%clk 0:02:41]}  Nf6 {[%clk 0:02:49]} 13. e4 {[%clk 0:02:31]}  Qa4 {[%clk 0:02:39]} 14. e5 {[%clk 0:02:28]}  Bf5 {[%clk 0:02:39]} 15. Qe2 {[%clk 0:02:22]}  Ne4 {[%clk 0:02:28]} 16. g4 {[%clk 0:01:50]}  Ng3 {[%clk 0:02:26]} 17. Qe1 {[%clk 0:01:50]}  Nxf1 {[%clk 0:02:26]} 18. exd6 {[%clk 0:01:47]}  Qd7 {[%clk 0:01:58]} 19. gxf5 {[%clk 0:01:46]}  Qxd6 {[%clk 0:01:53]} 20. Qxf1 {[%clk 0:01:21]}  gxf5 {[%clk 0:01:38]} 21. Nh4 {[%clk 0:01:16]}  Rf8 {[%clk 0:01:29]} 22. Qf4 {[%clk 0:00:52]}  Qf6 {[%clk 0:01:13]} 23. Bd2 {[%clk 0:00:46]}  O-O-O {[%clk 0:00:57]} 24. Re1 {[%clk 0:00:38]}  Qd6 {[%clk 0:00:51]} 25. Bf1 {[%clk 0:00:24]}  Rf7 {[%clk 0:00:30]} 26. Bd3 {[%clk 0:00:21]}  Rdf8 {[%clk 0:00:17]} 27. Re6 {[%clk 0:00:20]}  Qd7 {[%clk 0:00:15]} 28. Be1 {[%clk 0:00:20]}  Kd8 {[%clk 0:00:13]} 29. Bg3 {[%clk 0:00:20]}  Nc8 {[%clk 0:00:13]} 30. Kf2 {[%clk 0:00:20]}  Nd6 {[%clk 0:00:13]} 31. Nf3 {[%clk 0:00:19]}  Ne4+ {[%clk 0:00:11]} 32. Ke2 {[%clk 0:00:17]}  Nxg3+ {[%clk 0:00:11]} 33. Qxg3 {[%clk 0:00:18]}  f4 {[%clk 0:00:12]} 34. Qg5 {[%clk 0:00:18]}  Qa4 {[%clk 0:00:12]} 35. Qe5 {[%clk 0:00:17]}  Qxa2+ {[%clk 0:00:11]} 36. Nd2 {[%clk 0:00:17]}  f3+ {[%clk 0:00:12]} 37. Ke3 {[%clk 0:00:18]}  Qa5 {[%clk 0:00:09]} 38. Qb8+ {[%clk 0:00:18]}  Kd7 {[%clk 0:00:09]} 39. Qxb7+ {[%clk 0:00:18]}  Qc7 {[%clk 0:00:10]} 40. Qb5+ {[%clk 0:00:18]}  Kd8 {[%clk 0:00:10]} 41. Rc6 {[%clk 0:00:19]}  Qf4+ {[%clk 0:00:10]} 42. Kf2 {[%clk 0:00:18]}  Qxd2+ {[%clk 0:00:11]} 43. Kf1 {[%clk 0:00:18]}  Qxd3+ {[%clk 0:00:11]} 44. Kf2 {[%clk 0:00:19]}  Qe2+ {[%clk 0:00:11]} 45. Kg3 {[%clk 0:00:19]}  Qg2+ {[%clk 0:00:09]} 46. Kh4 {[%clk 0:00:20]}  Rf4+ {[%clk 0:00:10]} 47. Kh5 {[%clk 0:00:20]}  Qg6+ {[%clk 0:00:10]} 48. Rxg6 {[%clk 0:00:20]}  hxg6+ {[%clk 0:00:08]} 49. Kxg6 {[%clk 0:00:20]}  R4f6+ {[%clk 0:00:08]} 50. Kg5 {[%clk 0:00:20]}  f2 {[%clk 0:00:06]} 51. Qb8+ {[%clk 0:00:20]}  Kd7 {[%clk 0:00:06]} 52. Qb7+ {[%clk 0:00:20]}  Ke8 {[%clk 0:00:06]} 53. Qc8+ {[%clk 0:00:20]}  Kf7 {[%clk 0:00:06]} 0-1


[Site "https://www.chess.com"]

[Event "Titled Tuesday Blitz April 12 Early 2022"]
[White "Lashkin, Jegor"]
[Black "Colas, Joshua"]
[WhiteFideId "13907808"]
[BlackFideId "2044447"]
[WhiteElo "2368"]
[BlackElo "2347"]
[Result "1-0"]
[Round "05"]
[TimeControl "180+1"]
[Date "2022.04.12"]
[WhiteClock "0:01:14"]
[BlackClock "0:01:19"]

1. Nf3 {[%clk 0:02:56]}  d5 {[%clk 0:02:47]} 2. e3 {[%clk 0:02:56]}  Nf6 {[%clk 0:02:46]} 3. b3 {[%clk 0:02:57]}  e6 {[%clk 0:02:38]} 4. Bb2 {[%clk 0:02:57]}  Be7 {[%clk 0:02:37]} 5. d4 {[%clk 0:02:57]}  O-O {[%clk 0:02:37]} 6. Bd3 {[%clk 0:02:57]}  b6 {[%clk 0:02:36]} 7. O-O {[%clk 0:02:57]}  Bb7 {[%clk 0:02:37]} 8. Nbd2 {[%clk 0:02:57]}  Nbd7 {[%clk 0:02:37]} 9. Ne5 {[%clk 0:02:56]}  c5 {[%clk 0:02:34]} 10. f4 {[%clk 0:02:53]}  Rc8 {[%clk 0:02:29]} 11. Qf3 {[%clk 0:02:44]}  a6 {[%clk 0:02:25]} 12. Rad1 {[%clk 0:02:23]}  b5 {[%clk 0:02:22]} 13. c3 {[%clk 0:01:49]}  Qb6 {[%clk 0:02:13]} 14. Kh1 {[%clk 0:01:46]}  c4 {[%clk 0:02:05]} 15. Bb1 {[%clk 0:01:45]}  cxb3 {[%clk 0:02:05]} 16. axb3 {[%clk 0:01:43]}  Rc7 {[%clk 0:01:59]} 17. f5 {[%clk 0:01:34]}  exf5 {[%clk 0:01:48]} 18. Bxf5 {[%clk 0:01:29]}  Nxe5 {[%clk 0:01:45]} 19. dxe5 {[%clk 0:01:29]}  Nd7 {[%clk 0:01:44]} 20. Qh3 {[%clk 0:01:27]}  g6 {[%clk 0:01:28]} 21. Bxd7 {[%clk 0:01:26]}  h5 {[%clk 0:01:22]} 22. e6 {[%clk 0:01:25]}  f5 {[%clk 0:01:20]} 23. Qg3 {[%clk 0:01:19]}  Kh7 {[%clk 0:01:19]} 24. Nf3 {[%clk 0:01:14]} 1-0


[Site "https://www.chess.com"]

[Event "Titled Tuesday Blitz April 12 Early 2022"]
[White "Lazavik, Denis"]
[Black "Esipenko, Andrey"]
[WhiteFideId "13515110"]
[BlackFideId "24175439"]
[WhiteElo "2437"]
[BlackElo "2617"]
[Result "1/2-1/2"]
[Round "05"]
[TimeControl "180+1"]
[Date "2022.04.12"]
[WhiteClock "0:00:58"]
[BlackClock "0:00:43"]

1. d4 {[%clk 0:03:00]}  Nf6 {[%clk 0:02:59]} 2. c4 {[%clk 0:03:01]}  e6 {[%clk 0:02:58]} 3. Nf3 {[%clk 0:03:01]}  d5 {[%clk 0:02:57]} 4. Nc3 {[%clk 0:03:01]}  Be7 {[%clk 0:02:53]} 5. Bg5 {[%clk 0:02:59]}  O-O {[%clk 0:02:50]} 6. e3 {[%clk 0:02:59]}  h6 {[%clk 0:02:51]} 7. Bh4 {[%clk 0:02:59]}  Nbd7 {[%clk 0:02:49]} 8. Qc2 {[%clk 0:02:58]}  c5 {[%clk 0:02:48]} 9. dxc5 {[%clk 0:02:57]}  Nxc5 {[%clk 0:02:47]} 10. cxd5 {[%clk 0:02:57]}  Nxd5 {[%clk 0:02:46]} 11. Bxe7 {[%clk 0:02:56]}  Nxe7 {[%clk 0:02:46]} 12. Be2 {[%clk 0:02:54]}  b6 {[%clk 0:02:45]} 13. b4 {[%clk 0:02:52]}  Nd7 {[%clk 0:02:44]} 14. O-O {[%clk 0:02:50]}  Nf6 {[%clk 0:02:40]} 15. Rfd1 {[%clk 0:02:48]}  Qc7 {[%clk 0:02:40]} 16. Rac1 {[%clk 0:02:35]}  Bb7 {[%clk 0:02:39]} 17. Qb3 {[%clk 0:02:29]}  Rac8 {[%clk 0:02:26]} 18. h3 {[%clk 0:02:20]}  Qb8 {[%clk 0:02:23]} 19. Ne1 {[%clk 0:02:04]}  Ned5 {[%clk 0:02:17]} 20. Nxd5 {[%clk 0:01:58]}  Bxd5 {[%clk 0:02:15]} 21. Qb2 {[%clk 0:01:58]}  Rxc1 {[%clk 0:02:07]} 22. Rxc1 {[%clk 0:01:59]}  Rc8 {[%clk 0:02:07]} 23. a3 {[%clk 0:01:57]}  Ne4 {[%clk 0:01:56]} 24. Bf3 {[%clk 0:01:53]}  Rxc1 {[%clk 0:01:53]} 25. Qxc1 {[%clk 0:01:54]}  Qe5 {[%clk 0:01:54]} 26. Nd3 {[%clk 0:01:34]}  Qc3 {[%clk 0:01:31]} 27. Bxe4 {[%clk 0:01:23]}  Qxc1+ {[%clk 0:01:29]} 28. Nxc1 {[%clk 0:01:24]}  Bxe4 {[%clk 0:01:29]} 29. f3 {[%clk 0:01:24]}  Bc6 {[%clk 0:01:27]} 30. Ne2 {[%clk 0:01:22]}  Kf8 {[%clk 0:01:27]} 31. Nc3 {[%clk 0:01:22]}  Ke7 {[%clk 0:01:27]} 32. e4 {[%clk 0:01:17]}  f5 {[%clk 0:01:27]} 33. exf5 {[%clk 0:01:12]}  exf5 {[%clk 0:01:27]} 34. f4 {[%clk 0:01:12]}  g5 {[%clk 0:01:05]} 35. g3 {[%clk 0:01:12]}  gxf4 {[%clk 0:00:54]} 36. gxf4 {[%clk 0:01:11]}  Kf6 {[%clk 0:00:53]} 37. Kf2 {[%clk 0:01:11]}  Kg6 {[%clk 0:00:51]} 38. Kg3 {[%clk 0:01:11]}  Kh5 {[%clk 0:00:50]} 39. Ne2 {[%clk 0:01:08]}  Kg6 {[%clk 0:00:44]} 40. Nc3 {[%clk 0:00:58]}  Kh5 {[%clk 0:00:43]} 41. Ne2 {[%clk 0:00:57]}  Kg6 {[%clk 0:00:43]} 42. Nc3 {[%clk 0:00:58]} 1/2-1/2


[Site "https://www.chess.com"]